fUST/lending_fUST_20250330
["ID","MTS","AMOUNT","RATE_DAILY","PERIOD"]
[356839913,1743315033375,-538.75,0.00021917,2]
[356839914,1743315033385,-507.04093152,0.00021917,2]
[356839915,1743315033394,-500.0,0.00021917,2]
[356839916,1743315033403,-500.0,0.00021917,2]
[356839917,1743315033413,-500.0,0.00021917,2]
[356839918,1743315033422,-1394.24,0.00021917,2]
[356839919,1743315033431,-500.0,0.00021917,2]
[356839920,1743315033441,-500.0,0.00021917,2]
[356839921,1743315033450,-592.88,0.00021917,2]
[356839922,1743315033459,-505.76243597,0.00021917,2]
[356839923,1743315033469,-500.0,0.00021917,2]
[356839924,1743315033478,-506.31314396,0.00021917,2]
[356839925,1743315033487,-500.0,0.00021917,2]
[356839926,1743315033497,-707.24,0.00021917,2]
[356839927,1743315033506,-500.0,0.00021917,2]
[356839928,1743315033516,-598.79,0.00021917,2]
[356839929,1743315033526,-500.0,0.00021917,2]
[356839930,1743315033535,-1009.7932101,0.00021917,2]
[356839931,1743315033545,-504.12,0.00021917,2]
[356839932,1743315033554,-500.0,0.00021917,2]
[356839933,1743315033564,-500.0,0.00021917,2]
[356839934,1743315033573,-911.95,0.00021917,2]
[356839935,1743315033582,-1475.35,0.00021917,2]
[356839936,1743315033591,-500.0,0.00021917,2]
[356839937,1743315033601,-500.0,0.00021917,2]
[356839938,1743315033610,-504.84113666,0.00021917,2]
[356839939,1743315033619,-507.3565201,0.00021917,2]
[356839940,1743315033629,-500.0,0.00021917,2]
[356839941,1743315033638,-1045.55,0.00021917,2]
[356839942,1743315033647,-500.0,0.00021917,2]
[356839943,1743315033656,-510.93231183,0.00021917,2]
[356839944,1743315033666,-500.0,0.00021917,2]
[356839945,1743315033676,-500.0,0.00021917,2]
[356839946,1743315033685,-631.19,0.00021917,2]
[356839947,1743315033694,-505.1243948,0.00021917,2]
[356839948,1743315033703,-500.0,0.00021917,2]
[356839949,1743315033712,-513.77253033,0.00021917,2]
[356839950,1743315033722,-500.0,0.00021917,2]
[356839951,1743315033731,-500.0,0.00021917,2]
[356839952,1743315033741,-500.0,0.00021917,2]
[356839953,1743315033750,-500.0,0.00021917,2]
[356839954,1743315033759,-500.0,0.00021917,2]
[356839955,1743315033769,-501.6119829,0.00021917,2]
[356839956,1743315033778,-247.88194169,0.00021917,2]
[356839957,1743315033788,-500.0,0.00021917,2]
[356839958,1743315033797,-533.54,0.00021917,2]
[356839959,1743315033807,-506.10482568,0.00021917,2]
[356839960,1743315033816,-158.25920926,0.00021917,2]
[356839961,1743315033825,-504.93125469,0.00021917,2]
[356839962,1743315033834,-650.81,0.00021917,2]
[356839963,1743315033844,-500.0,0.00021917,2]
[356839964,1743315033853,-514.50323448,0.00021917,2]
[356839965,1743315033863,-500.0,0.00021917,2]
[356839966,1743315033872,-500.0,0.00021917,2]
[356839967,1743315033881,-1079.55,0.00021917,2]
[356839968,1743315033891,-500.0,0.00021917,2]
[356839969,1743315034139,-500.0,0.00021917,2]
[356839970,1743315034155,-500.0,0.00021917,2]
[356839971,1743315034168,-561.43,0.00021917,2]
[356839972,1743315034178,-500.0,0.00021917,2]
[356839973,1743315034187,-500.56005214,0.00021917,2]
[356839974,1743315034197,-500.0,0.00021917,2]
[356839975,1743315034208,-825.74,0.00021917,2]
[356839976,1743315034217,-575.14166525,0.00021917,2]
[356839977,1743315034229,-633.94,0.00021917,2]
[356839978,1743315034239,-500.0,0.00021917,2]
[356839979,1743315034249,-500.0,0.00021917,2]
[356839980,1743315034260,-500.0,0.00021917,2]
[356839981,1743315034269,-382.90997228,0.00021917,2]
[356839982,1743315034279,-500.0,0.00021917,2]
[356839983,1743315034289,-505.79143939,0.00021917,2]
[356839984,1743315034299,-500.0,0.00021917,2]
[356839985,1743315034308,-500.0,0.00021917,2]
[356839986,1743315034318,-500.0,0.00021917,2]
[356839987,1743315034327,-500.0,0.00021917,2]
[356839988,1743315034336,-500.0,0.00021917,2]
[356839989,1743315034346,-500.0,0.00021917,2]
[356839990,1743315034355,-500.0,0.00021917,2]
[356839991,1743315034364,-667.32,0.00021917,2]
[356839992,1743315034374,-765.47,0.00021917,2]
[356839993,1743315034383,-505.25592521,0.00021917,2]
[356839994,1743315034392,-500.0,0.00021917,2]
[356839995,1743315034401,-500.0,0.00021917,2]
[356839996,1743315034411,-2033.7,0.00021917,2]
[356839997,1743315034420,-500.0,0.00021917,2]
[356839998,1743315034429,-500.0,0.00021917,2]
[356839999,1743315034438,-968.58,0.00021917,2]
[356840000,1743315034447,-1279.98,0.00021917,2]
[356840001,1743315034456,-501.89771257,0.00021917,2]
[356840002,1743315034466,-1053.64,0.00021917,2]
[356840003,1743315034476,-500.0,0.00021917,2]
[356840004,1743315034485,-687.63,0.00021917,2]
[356840005,1743315034495,-500.0,0.00021917,2]
[356840006,1743315034504,-500.0,0.00021917,2]
[356840007,1743315034514,-500.0,0.00021917,2]
[356840008,1743315034523,-500.0,0.00021917,2]
[356840009,1743315034532,-1232.34,0.00021917,2]
[356840010,1743315034541,-500.0,0.00021917,2]
[356840011,1743315034551,-500.0,0.00021917,2]
[356840012,1743315034560,-1847.92,0.00021917,2]
[356840013,1743315034569,-1012.28,0.00021917,2]
[356840014,1743315034578,-500.0,0.00021917,2]
[356840015,1743315034588,-500.0,0.00021917,2]
[356840016,1743315034597,-317.46156249,0.00021917,2]
[356840017,1743315034606,-730.85,0.00021917,2]
[356840018,1743315034615,-500.0,0.00021917,2]
[356840019,1743315034624,-521.95,0.00021917,2]
[356840020,1743315034633,-504.79739113,0.00021917,2]
[356840021,1743315034642,-151.0,0.00021917,2]
[356840022,1743315034651,-500.0,0.00021917,2]
[356840023,1743315034660,-151.0,0.00021917,2]
[356840024,1743315034669,-500.0,0.00021917,2]
[356840025,1743315034678,-151.0,0.00021917,2]
[356840026,1743315034687,-151.0,0.00021917,2]
[356840027,1743315034697,-509.47435022,0.00021917,2]
[356840028,1743315034706,-500.0,0.00021917,2]
[356840029,1743315034715,-151.0,0.00021917,2]
[356840030,1743315034725,-151.0,0.00021917,2]
[356840031,1743315034734,-151.0,0.00021917,2]
[356840032,1743315034744,-151.0,0.00021917,2]
[356840033,1743315034753,-507.97568721,0.00021917,2]
[356840034,1743315034763,-151.0,0.00021917,2]
[356840035,1743315034772,-151.0,0.00021917,2]
[356840036,1743315034783,-705.45,0.00021917,2]
[356840037,1743315034793,-151.0,0.00021917,2]
[356840038,1743315034803,-151.0,0.00021917,2]
[356840039,1743315034812,-151.0,0.00021917,2]
[356840040,1743315034822,-521.9272965,0.00021917,2]
[356840041,1743315034832,-766.8,0.00021917,2]
[356840042,1743315034841,-151.0,0.00021917,2]
[356840043,1743315034851,-500.50060478,0.00021917,2]
[356840044,1743315034861,-151.0,0.00021917,2]
[356840045,1743315034871,-230.616183,0.00021917,2]
[356840046,1743315034880,-627.19603179,0.00021917,2]
[356840047,1743315034891,-504.2319454,0.00021917,2]
[356840048,1743315034900,-555.98628644,0.00021917,2]
[356840049,1743315034909,-500.0,0.00021917,2]
[356840050,1743315034919,-500.0,0.00021917,2]
[356840051,1743315034929,-888.36,0.00021917,2]
[356840052,1743315034939,-508.98703192,0.00021917,2]
[356840053,1743315034950,-666.86,0.00021917,2]
[356840054,1743315034960,-500.0,0.00021917,2]
[356840055,1743315034970,-506.77563959,0.00021917,2]
[356840056,1743315034979,-1732.1,0.00021917,2]
[356840057,1743315034989,-500.0,0.00021917,2]
[356840058,1743315034999,-500.0,0.00021917,2]
[356840059,1743315035009,-500.0,0.00021917,2]
[356840060,1743315035018,-500.0,0.00021917,2]
[356840061,1743315035029,-505.57035192,0.00021917,2]
[356840062,1743315035039,-599.87664933,0.00021917,2]
[356840063,1743315035049,-1249.76,0.00021917,2]
[356840064,1743315035059,-567.15460225,0.00021917,2]
[356840065,1743315035068,-201.43986192,0.00021917,2]
[356840066,1743315035078,-500.0,0.00021917,2]
[356840067,1743315035087,-500.0,0.00021917,2]
[356840068,1743315035096,-592.98,0.00021917,2]
[356840069,1743315035106,-504.37,0.00021917,2]
[356840070,1743315035116,-500.0,0.00021917,2]
[356840071,1743315035125,-500.0,0.00021917,2]
[356840072,1743315035134,-500.0,0.00021917,2]
[356840073,1743315035145,-572.54202214,0.00021917,2]
[356840074,1743315035155,-503.28661127,0.00021917,2]
[356840075,1743315035168,-786.16,0.00021917,2]
[356840076,1743315035178,-500.0,0.00021917,2]
[356840077,1743315035188,-1522.9,0.00021917,2]
[356840078,1743315035198,-246.72,0.00021917,2]
[356840079,1743315035207,-680.46,0.00021917,2]
[356840080,1743315035217,-500.0,0.00021917,2]
[356840081,1743315035227,-634.6,0.00021917,2]
[356840082,1743315035238,-500.0,0.00021917,2]
[356840083,1743315035249,-500.0,0.00021917,2]
[356840084,1743315035259,-500.0,0.00021917,2]
[356840085,1743315035268,-500.0,0.00021917,2]
[356840086,1743315035279,-836.42,0.00021917,2]
[356840087,1743315035289,-2847.89,0.00021917,2]
[356840088,1743315035299,-500.0,0.00021917,2]
[356840089,1743315035308,-500.0,0.00021917,2]
[356840090,1743315035318,-796.66,0.00021917,2]
[356840091,1743315035328,-588.92026886,0.00021917,2]
[356840092,1743315035338,-500.0,0.00021917,2]
[356840093,1743315035348,-2149.46,0.00021917,2]
[356840094,1743315035358,-500.0,0.00021917,2]
[356840095,1743315035367,-509.12820771,0.00021917,2]
[356840096,1743315035377,-500.0,0.00021917,2]
[356840097,1743315035386,-500.0,0.00021917,2]
[356840098,1743315035396,-500.0,0.00021917,2]
[356840099,1743315035405,-1222.99,0.00021917,2]
[356840100,1743315035415,-150.70966454,0.00021917,2]
[356840101,1743315035424,-851.43,0.00021917,2]
[356840102,1743315035433,-500.0,0.00021917,2]
[356840103,1743315035442,-1069.42,0.00021917,2]
[356840104,1743315035451,-500.0,0.00021917,2]
[356840105,1743315035460,-1034.5,0.00021917,2]
[356840106,1743315035470,-500.0,0.00021917,2]
[356840107,1743315035479,-500.0,0.00021917,2]
[356840108,1743315035488,-509.21863861,0.00021917,2]
[356840109,1743315035498,-500.0,0.00021917,2]
[356840110,1743315035507,-500.0,0.00021917,2]
[356840111,1743315035516,-500.0,0.00021917,2]
[356840112,1743315035525,-2999.45,0.00021917,2]
[356840113,1743315035535,-500.0,0.00021917,2]
[356840114,1743315035544,-500.0,0.00021917,2]
[356840115,1743315035553,-524.3,0.00021917,2]
[356840116,1743315035562,-500.0,0.00021917,2]
[356840117,1743315035571,-500.0,0.00021917,2]
[356840118,1743315035580,-2766.98,0.00021917,2]
[356840119,1743315035590,-594.5,0.00021917,2]
[356840120,1743315035599,-500.0,0.00021917,2]
[356840121,1743315035608,-502.40774949,0.00021917,2]
[356840122,1743315035617,-500.0,0.00021917,2]
[356840123,1743315035626,-668.89,0.00021917,2]
[356840124,1743315035635,-504.98183828,0.00021917,2]
[356840125,1743315035643,-718.12,0.00021917,2]
[356840126,1743315035653,-500.0,0.00021917,2]
[356840127,1743315035662,-525.41,0.00021917,2]
[356840128,1743315035671,-248.22544308,0.00021917,2]
[356840129,1743315035680,-656.24,0.00021917,2]
[356840130,1743315035689,-500.0,0.00021917,2]
[356840131,1743315035699,-502.8671125,0.00021917,2]
[356840132,1743315035708,-503.09413705,0.00021917,2]
[356840133,1743315035717,-506.75562202,0.00021917,2]
[356840134,1743315035726,-1391.8,0.00021917,2]
[356840135,1743315035735,-502.89410297,0.00021917,2]
[356840136,1743315035745,-500.0,0.00021917,2]
[356840137,1743315035754,-500.0,0.00021917,2]
[356840138,1743315035763,-500.0,0.00021917,2]
[356840139,1743315035772,-500.0,0.00021917,2]
[356840140,1743315035782,-1460.07,0.00021917,2]
[356840141,1743315035791,-500.0,0.00021917,2]
[356840142,1743315035801,-500.0,0.00021917,2]
[356840143,1743315035810,-501.36700406,0.00021917,2]
[356840144,1743315035819,-500.0,0.00021917,2]
[356840145,1743315035829,-1287.81,0.00021917,2]
[356840146,1743315035838,-509.04766616,0.00021917,2]
[356840147,1743315035848,-549.16,0.00021917,2]
[356840148,1743315035857,-500.0,0.00021917,2]
[356840149,1743315035867,-1475.91,0.00021917,2]
[356840150,1743315035876,-500.0,0.00021917,2]
[356840151,1743315035885,-488.03964829,0.00021917,2]
[356840152,1743315035895,-1346.2,0.00021917,2]
[356840153,1743315035905,-623.25,0.00021917,2]
[356840154,1743315035914,-500.0,0.00021917,2]
[356840155,1743315035923,-708.26,0.00021917,2]
[356840156,1743315035933,-502.10778534,0.00021917,2]
[356840157,1743315035942,-1461.03,0.00021917,2]
[356840158,1743315035951,-678.89,0.00021917,2]
[356840159,1743315035960,-500.0,0.00021917,2]
[356840160,1743315035970,-1620.73,0.00021917,2]
[356840161,1743315035979,-505.45245723,0.00021917,2]
[356840162,1743315035989,-804.96,0.00021917,2]
[356840163,1743315035998,-500.0,0.00021917,2]
[356840164,1743315036007,-1099.28,0.00021917,2]
[356840165,1743315036016,-1169.63,0.00021917,2]
[356840166,1743315036026,-500.0,0.00021917,2]
[356840167,1743315036035,-1064.42,0.00021917,2]
[356840168,1743315036043,-500.0,0.00021917,2]
[356840169,1743315036052,-507.16627718,0.00021917,2]
[356840170,1743315036061,-507.18365141,0.00021917,2]
[356840171,1743315036070,-500.0,0.00021917,2]
[356840172,1743315036079,-2207.55,0.00021917,2]
[356840173,1743315036088,-506.39369139,0.00021917,2]
[356840174,1743315036097,-508.16517194,0.00021917,2]
[356840175,1743315036107,-500.0,0.00021917,2]
[356840176,1743315036116,-500.0,0.00021917,2]
[356840177,1743315036126,-583.57,0.00021917,2]
[356840178,1743315036135,-655.94,0.00021917,2]
[356840179,1743315036145,-500.0,0.00021917,2]
[356840180,1743315036155,-797.65,0.00021917,2]
[356840181,1743315036167,-1372.78,0.00021917,2]
[356840182,1743315036176,-500.0,0.00021917,2]
[356840183,1743315036185,-500.0,0.00021917,2]
[356840184,1743315036194,-503.70941889,0.00021917,2]
[356840185,1743315036204,-1398.16,0.00021917,2]
[356840186,1743315036214,-756.19,0.00021917,2]
[356840187,1743315036223,-995.76,0.00021917,2]
[356840188,1743315036232,-500.0,0.00021917,2]
[356840189,1743315036242,-500.0,0.00021917,2]
[356840190,1743315036252,-500.0,0.00021917,2]
[356840191,1743315036262,-503.55760174,0.00021917,2]
[356840192,1743315036271,-594.06,0.00021917,2]
[356840193,1743315036280,-500.0,0.00021917,2]
[356840194,1743315036290,-2016.75,0.00021917,2]
[356840195,1743315036301,-500.0,0.00021917,2]
[356840196,1743315036311,-500.0,0.00021917,2]
[356840197,1743315036322,-500.0,0.00021917,2]
[356840198,1743315036333,-846.91,0.00021917,2]
[356840199,1743315036344,-2091.96,0.00021917,2]
[356840200,1743315036355,-500.0,0.00021917,2]
[356840201,1743315036366,-500.0,0.00021917,2]
[356840202,1743315036379,-500.0,0.00021917,2]
[356840203,1743315036388,-500.0,0.00021917,2]
[356840204,1743315036398,-500.0,0.00021917,2]
[356840205,1743315036407,-500.0,0.00021917,2]
[356840206,1743315036417,-500.0,0.00021917,2]
[356840207,1743315036426,-624.54,0.00021917,2]
[356840208,1743315036435,-888.96,0.00021917,2]
[356840209,1743315036445,-3890.28,0.00021917,2]
[356840210,1743315036454,-500.0,0.00021917,2]
[356840211,1743315036463,-500.0,0.00021917,2]
[356840212,1743315036472,-500.0,0.00021917,2]
[356840213,1743315036481,-500.0,0.00021917,2]
[356840214,1743315036490,-720.62,0.00021917,2]
[356840215,1743315036499,-500.0,0.00021917,2]
[356840216,1743315036508,-500.0,0.00021917,2]
[356840217,1743315036517,-500.0,0.00021917,2]
[356840218,1743315036526,-513.66231964,0.00021917,2]
[356840219,1743315036535,-1147.18,0.00021917,2]
[356840220,1743315036543,-500.0,0.00021917,2]
[356840221,1743315036552,-615.56,0.00021917,2]
[356840222,1743315036561,-724.48,0.00021917,2]
[356840223,1743315036571,-565.23,0.00021917,2]
[356840224,1743315036580,-7623.71,0.00021917,2]
[356840225,1743315036589,-548.83337096,0.00021917,2]
[356840226,1743315036600,-500.0,0.00021917,2]
[356840227,1743315036609,-1181.86,0.00021917,2]
[356840228,1743315036618,-555.94691226,0.00021917,2]
[356840229,1743315036628,-500.0,0.00021917,2]
[356840230,1743315036637,-542.09,0.00021917,2]
[356840231,1743315036646,-506.91892288,0.00021917,2]
[356840232,1743315036655,-518.99,0.00021917,2]
[356840233,1743315036664,-500.0,0.00021917,2]
[356840234,1743315036673,-741.76,0.00021917,2]
[356840235,1743315036682,-500.0,0.00021917,2]
[356840236,1743315036691,-1001.17,0.00021917,2]
[356840237,1743315036699,-1281.88,0.00021917,2]
[356840238,1743315036709,-607.99487215,0.00021917,2]
[356840239,1743315036718,-500.0,0.00021917,2]
[356840240,1743315036728,-500.0,0.00021917,2]
[356840241,1743315036739,-500.0,0.00021917,2]
[356840242,1743315036749,-506.31074796,0.00021917,2]
[356840243,1743315036758,-500.0,0.00021917,2]
[356840244,1743315036767,-488.99633387,0.00021917,2]
[356840245,1743315036776,-500.0,0.00021917,2]
[356840246,1743315036784,-575.0,0.00021917,2]
[356840247,1743315036793,-500.0,0.00021917,2]
[356840248,1743315036803,-500.0,0.00021917,2]
[356840249,1743315036811,-500.0,0.00021917,2]
[356840250,1743315036820,-500.0,0.00021917,2]
[356840251,1743315036829,-500.0,0.00021917,2]
[356840252,1743315036838,-500.0,0.00021917,2]
[356840253,1743315036847,-500.0,0.00021917,2]
[356840254,1743315036856,-563.37896798,0.00021917,2]
[356840255,1743315036870,-2273.0,0.00021917,2]
[356840256,1743315036883,-500.0,0.00021917,2]
[356840257,1743315036892,-500.0,0.00021917,2]
[356840258,1743315036902,-516.91,0.00021917,2]
[356840259,1743315036911,-500.0,0.00021917,2]
[356840260,1743315036920,-5850.88,0.00021917,2]
[356840261,1743315036929,-500.0,0.00021917,2]
[356840262,1743315036939,-500.0,0.00021917,2]
[356840263,1743315036947,-500.0,0.00021917,2]
[356840264,1743315036957,-500.0,0.00021917,2]
[356840265,1743315036966,-500.0,0.00021917,2]
[356840266,1743315036975,-500.0,0.00021917,2]
[356840267,1743315036984,-500.0,0.00021917,2]
[356840268,1743315036993,-9544.02,0.00021917,2]
[356840269,1743315037003,-500.0,0.00021917,2]
[356840270,1743315037013,-5143.55,0.00021917,2]
[356840271,1743315037022,-1144.89,0.00021917,2]
[356840272,1743315037031,-500.0,0.00021917,2]
[356840273,1743315037040,-500.0,0.00021917,2]
[356840274,1743315037049,-500.0,0.00021917,2]
[356840275,1743315037059,-3665.5,0.00021917,2]
[356840276,1743315037068,-20044.28,0.00021917,2]
[356840277,1743315037086,-743.8,0.00021917,2]
[356840278,1743315037098,-521.95,0.00021917,2]
[356840279,1743315037108,-9138.2,0.00021917,2]
[356840280,1743315037118,-3627.27,0.00021917,2]
[356840281,1743315037128,-500.0,0.00021917,2]
[356840282,1743315037137,-500.0,0.00021917,2]
[356840283,1743315037147,-500.0,0.00021917,2]
[356840284,1743315037387,-500.0,0.00021917,2]
[356840285,1743315037396,-3751.57,0.00021917,2]
[356840286,1743315037407,-1367.69,0.00021917,2]
[356840287,1743315037416,-1074.5,0.00021917,2]
[356840288,1743315037425,-812.1,0.00021917,2]
[356840289,1743315037434,-1217.3,0.00021917,2]
[356840290,1743315037443,-6569.05,0.00021917,2]
[356840291,1743315037452,-500.0,0.00021917,2]
[356840292,1743315037461,-1470.09,0.00021917,2]
[356840293,1743315037470,-925.42,0.00021917,2]
[356840294,1743315037479,-1470.09,0.00021917,2]
[356840295,1743315037488,-1470.09,0.00021917,2]
[356840296,1743315037497,-1470.09,0.00021917,2]
[356840297,1743315037507,-1470.09,0.00021917,2]
[356840298,1743315037516,-1470.09,0.00021917,2]
[356840299,1743315037525,-1470.09,0.00021917,2]
[356840300,1743315037534,-1470.09,0.00021917,2]
[356840301,1743315037543,-1470.09,0.00021917,2]
[356840302,1743315037552,-1470.09,0.00021917,2]
[356840303,1743315037561,-500.0,0.00021917,2]
[356840304,1743315037570,-1470.09,0.00021917,2]
[356840305,1743315037578,-1470.09,0.00021917,2]
[356840306,1743315037587,-1470.09,0.00021917,2]
[356840307,1743315037596,-1470.09,0.00021917,2]
[356840308,1743315037605,-1626.85,0.00021917,2]
[356840309,1743315037614,-1470.09,0.00021917,2]
[356840310,1743315037623,-1470.09,0.00021917,2]
[356840311,1743315037632,-1470.09,0.00021917,2]
[356840312,1743315037641,-1470.09,0.00021917,2]
[356840313,1743315037650,-1470.09,0.00021917,2]
[356840314,1743315037659,-1470.09,0.00021917,2]
[356840316,1743315037668,-1470.09,0.00021917,2]
[356840318,1743315037678,-1470.09,0.00021917,2]
[356840319,1743315037687,-1470.09,0.00021917,2]
[356840321,1743315037697,-1470.31993215,0.00021917,2]
[356840322,1743315037706,-500.0,0.00021917,2]
[356840323,1743315037715,-548.21082956,0.00021917,2]
[356840324,1743315037724,-1697.03,0.00021917,2]
[356840325,1743315037733,-500.0,0.00021917,2]
[356840327,1743315037742,-507.32783063,0.00021917,2]
[356840328,1743315037751,-503.992068,0.00021917,2]
[356840329,1743315037761,-500.0,0.00021917,2]
[356840330,1743315037770,-986.69,0.00021917,2]
[356840331,1743315037779,-2514.28,0.00021917,2]
[356840333,1743315037788,-500.0,0.00021917,2]
[356840335,1743315037797,-500.0,0.00021917,2]
[356840336,1743315037807,-19479.26,0.00021917,2]
[356840337,1743315037816,-728.09,0.00021917,2]
[356840339,1743315037825,-1767.69,0.00021917,2]
[356840340,1743315037835,-10859.73,0.00021917,2]
[356840341,1743315037844,-500.0,0.00021917,2]
[356840342,1743315037854,-500.0,0.00021917,2]
[356840343,1743315037864,-500.0,0.00021917,2]
[356840344,1743315037873,-1165.9,0.00021917,2]
[356840345,1743315037882,-104658.97,0.00021917,2]
[356840346,1743315037892,-500.0,0.00021917,2]
[356840348,1743315037902,-500.0,0.00021917,2]
[356840349,1743315037911,-1199.89,0.00021917,2]
[356840350,1743315037920,-648.71,0.00021917,2]
[356840351,1743315037930,-1247.21,0.00021917,2]
[356840352,1743315037940,-500.0,0.00021917,2]
[356840353,1743315037949,-7967.4,0.00021917,2]
[356840354,1743315037959,-500.0,0.00021917,2]
[356840355,1743315037968,-1282.84,0.00021917,2]
[356840356,1743315037977,-349.47003515,0.00021917,2]
[356840357,1743315037987,-873.53,0.00021917,2]
[356840358,1743315037996,-500.0,0.00021917,2]
[356840359,1743315038006,-556.19,0.00021917,2]
[356840360,1743315038016,-500.0,0.00021917,2]
[356840361,1743315038025,-500.0,0.00021917,2]
[356840362,1743315038035,-2444.57,0.00021917,2]
[356840363,1743315038045,-500.0,0.00021917,2]
[356840364,1743315038055,-500.0,0.00021917,2]
[356840365,1743315038065,-622.6611594,0.00021917,2]
[356840366,1743315038074,-3228.4,0.00021917,2]
[356840367,1743315038084,-500.0,0.00021917,2]
[356840368,1743315038094,-581.5,0.00021917,2]
[356840369,1743315038104,-5124.84,0.00021917,2]
[356840370,1743315038113,-500.0,0.00021917,2]
[356840372,1743315038122,-500.0,0.00021917,2]
[356840373,1743315038131,-548.10163341,0.00021917,2]
[356840374,1743315038140,-5055.18,0.00021917,2]
[356840375,1743315038149,-1837.99,0.00021917,2]
[356840376,1743315038158,-500.0,0.00021917,2]
[356840377,1743315038170,-877.28,0.00021917,2]
[356840378,1743315038179,-500.0,0.00021917,2]
[356840379,1743315038188,-1161.8,0.00021917,2]
[356840380,1743315038197,-500.0,0.00021917,2]
[356840381,1743315038207,-500.0,0.00021917,2]
[356840382,1743315038216,-962.91,0.00021917,2]
[356840383,1743315038225,-500.0,0.00021917,2]
[356840384,1743315038235,-568.01,0.00021917,2]
[356840385,1743315038246,-7405.61,0.00021917,2]
[356840386,1743315038255,-5389.14,0.00021917,2]
[356840387,1743315038265,-601.35,0.00021917,2]
[356840388,1743315038275,-527.95080188,0.00021917,2]
[356840389,1743315038284,-20960.86,0.00021917,2]
[356840390,1743315038293,-500.0,0.00021917,2]
[356840391,1743315038303,-2576.23,0.00021917,2]
[356840392,1743315038313,-999.46,0.00021917,2]
[356840393,1743315038323,-504.22737366,0.00021917,2]
[356840394,1743315038333,-507.96,0.00021917,2]
[356840395,1743315038342,-505.60254011,0.00021917,2]
[356840396,1743315038351,-500.0,0.00021917,2]
[356840397,1743315038361,-613.85,0.00021917,2]
[356840398,1743315038370,-500.0,0.00021917,2]
[356840399,1743315038379,-500.0,0.00021917,2]
[356840400,1743315038388,-500.0,0.00021917,2]
[356840401,1743315038397,-1042.09,0.00021917,2]
[356840402,1743315038407,-1050.22,0.00021917,2]
[356840403,1743315038416,-6195.27,0.00021917,2]
[356840404,1743315038425,-1008.25,0.00021917,2]
[356840405,1743315038434,-532.06220845,0.00021917,2]
[356840406,1743315038443,-532.32,0.00021917,2]
[356840407,1743315038452,-2684.6,0.00021917,2]
[356840408,1743315038461,-500.0,0.00021917,2]
[356840409,1743315038470,-749.908684,0.00021917,2]
[356840410,1743315038480,-749.908684,0.00021917,2]
[356840411,1743315038489,-749.908684,0.00021917,2]
[356840412,1743315038499,-550.55193625,0.00021917,2]
[356840413,1743315038508,-749.908684,0.00021917,2]
[356840414,1743315038517,-749.908684,0.00021917,2]
[356840415,1743315038526,-749.908684,0.00021917,2]
[356840416,1743315038535,-11570.32,0.00021917,2]
[356840417,1743315038545,-749.908684,0.00021917,2]
[356840418,1743315038555,-749.908684,0.00021917,2]
[356840419,1743315038564,-749.908684,0.00021917,2]
[356840420,1743315038573,-500.0,0.00021917,2]
[356840421,1743315038582,-816.76,0.00021917,2]